Cogmind - Beta 15 @@@ ROGUE MODE // 2025.06.19 @ 05:06:41 Player: BVrutally Odd Result: Destroyed by Cetus Guard with Advanced KE Penetrator Performance ------------- Evolutions (4) 2000 Regions Visited (13) 2600 Robots Destroyed (214) 1070 Value Destroyed (6707) 6707 Prototype IDs (33) 660 Alien Tech Used (0) 0 Bonus (-1070) -1070 TOTAL SCORE: 11967 Bonus ------- High Alert Combat Kills 1419 Follower Combat Kills 1327 Met Imprinter 300 Was Imprinted 300 Friendly Fire -4416 Cogmind --------- Core Integrity 0/850 Matter 183/300 Energy 76/100 System Corruption 42% Temperature Cool (0) Movement Treading (160) Location -6/Cetus Parts ------- > --- POWER (1) -------- (None) > --- PROPULSION (5) --- Medium Treads Improved Medium Treads > --- UTILITY (6) ------ High-capacity Storage Unit Long-range Sensor Array Improved Signal Interpreter Core Analyzer Zionite Weapon Casing > --- WEAPON (3) ------- Rocket Array Axe Phasing Sabre > --- INVENTORY (20) --- Light Treads Improved Cryofiber Web Advanced Heat Sink Experimental Heat Sink Zionite Biocell (600) Structural Scanner 0b10 Decoder Chip [Looter] Advanced Weapon Cycler Advanced Weapon Cycler Storm Laser Proton Cannon Proton Cannon Heavy Rocket Launcher Heavy Rocket Launcher CR-A16's Pointy Stick Peak State ------------ > --- POWER ------------ Cooled Deuterium Engine > --- PROPULSION ------- Carbon-fiber Leg Carbon-fiber Leg Multireflex Exoskeleton Arachnoskeleton > --- UTILITY ---------- Experimental Heat Sink High-capacity Storage Unit Improved Signal Interpreter Targeting Computer Core Analyzer Advanced Weapon Cycler > --- WEAPON ----------- Compact Ion Cannon Compact Ion Cannon Power Sword > --- INVENTORY -------- Advanced Heat Sink Zionite Biocell Long-range Sensor Array 0b10 Decoder Chip [Looter] Advanced Weapon Cycler Improved Heavy Armor Plating Dynamic Insulation System Storm Laser Proton Cannon Proton Cannon Compact Ion Cannon Heavy Rocket Launcher Heavy Rocket Launcher Rocket Array CR-A16's Pointy Stick [Rating: 95] Favorites ----------- Power Ion Engine Engine Ion Engine Power Core Enhanced Nuclear Core Reactor Antimatter Reactor Propulsion Light Treads Treads Light Treads Leg Armored Leg Wheel Wheel Utility High-capacity Storage Unit Device Long-range Sensor Array Storage High-capacity Storage Unit Processor Core Analyzer Protection Improved Medium Armor Plating Weapon Enhanced Autogun Energy Gun Advanced Beam Rifle Energy Cannon Compact Ion Cannon Ballistic Gun Enhanced Autogun Ballistic Cannon Heavy Flak Cannon Launcher Rocket Array Slashing Weapon Power Sword Piercing Weapon CR-A16's Pointy Stick Build | -11 -10 -10 -8 -7 -7 -7 -7 -7 -7 -6 -6 -6 -6 ------- Run | Yrd Mat Sub Mat Fac Was Fac Low Low Zio Pro Fac Ext Cet Slots Evolved 8 | . . . 4 2 . . . . . . 2 . . Power . | . . . . . . . . . . . . . . Propulsion 3 | . . . 2 1 . . . . . . . . . Utility 4 | . . . 2 1 . . . . . . 1 . . Weapon 1 | . . . . . . . . . . . 1 . . Parts Attached 154 | 7 5 17 26 3 4 5 . 7 3 1 59 16 1 Power 16 | 1 . 1 5 . . . . 1 . . 7 1 . Engine 10 | 1 . 1 3 . . . . . . . 5 . . Core 3 | . . . 2 . . . . . . . 1 . . Reactor 3 | . . . . . . . . 1 . . 1 1 . Propulsion 58 | 2 1 5 12 1 2 1 . . . 1 26 7 . Treads 30 | 2 1 1 8 1 2 1 . . . 1 7 6 . Leg 18 | . . 1 4 . . . . . . . 12 1 . Wheel 10 | . . 3 . . . . . . . . 7 . . Hover . | . . . . . . . . . . . . . . Flight . | . . . . . . . . . . . . . . Utility 40 | 2 2 4 5 1 1 4 . 4 . . 15 2 . Device 16 | 1 . 1 3 . . 2 . 2 . . 7 . . Storage 5 | 1 2 . . . 1 . . . . . 1 . . Processor 6 | . . . . . . 1 . 1 . . 4 . . Hackware . | . . . . . . . . . . . . . . Protection 13 | . . 3 2 1 . 1 . 1 . . 3 2 . Artifact . | . . . . . . . . . . . . . . Weapon 40 | 2 2 7 4 1 1 . . 2 3 . 11 6 1 Energy Gun 11 | 1 . 1 2 . . . . . . . 4 3 . Energy Cannon 8 | . . 3 . . . . . . . . 4 . 1 Ballistic Gun 10 | 1 2 3 2 . . . . 2 . . . . . Ballistic Cannon 2 | . . . . 1 . . . . . . 1 . . Launcher 3 | . . . . . . . . . 3 . . . . Special Weapon . | . . . . . . . . . . . . . . Impact Weapon . | . . . . . . . . . . . . . . Slashing Weapon 5 | . . . . . 1 . . . . . 1 3 . Piercing Weapon 1 | . . . . . . . . . . . 1 . . Special Melee Weapon . | . . . . . . . . . . . . . . Unidentified Prototypes 22 | . . . 4 1 1 . . . 3 . 8 5 . Corrupted Parts 4 | . . . . . . . . . . . 4 . . System Corruption 36 | . . . . . . . . . . . 36 . . Parts Lost 51 | . . 6 8 . . . . 10 . . 16 8 3 Power 6 | . . . 2 . . . . 1 . . 2 . 1 Propulsion 21 | . . 4 3 . . . . 2 . . 9 1 2 Utility 13 | . . 1 1 . . . . 6 . . 2 3 . Weapon 11 | . . 1 2 . . . . 1 . . 3 4 . Highest Loss Streak 7 | . . 2 5 . . . . 4 . . 7 3 6 To Critical Strikes 3 | . . . . . . . . . . . 1 . 2 Average Backups 14 | 2 7 13 16 17 17 18 16 15 15 15 15 16 15 Power . | . 1 1 1 . . 1 1 . . . . . . Propulsion 2 | 1 2 2 4 9 8 8 4 1 1 1 . . 1 Utility 4 | . . 2 4 3 3 4 6 7 3 3 6 8 8 Weapon 6 | . 3 6 6 4 5 4 4 5 9 11 8 7 6 Tool/Special . | . . . . . . . . . . . . . . Unused Backups 27 | . 1 2 7 . 1 1 3 . 2 . 2 . 8 Power 3 | . . . 2 . . . . . 1 . . . . Propulsion 6 | . . . 1 . 1 1 3 . . . . . . Utility 8 | . . 1 1 . . . . . 1 . 1 . 4 Weapon 10 | . 1 1 3 . . . . . . . 1 . 4 Tool/Special . | . . . . . . . . . . . . . . Average Slot Usage (%) 89 | . 100 98 93 97 92 84 84 82 70 80 87 89 79 Engine 7 | . 14 14 5 7 7 7 7 4 . . 3 6 4 Reactor 1 | . . . . . . . . 2 7 7 . . . Treads 19 | . 28 24 23 36 31 23 23 22 15 19 9 15 22 Leg 4 | . . . 4 . . . . . . . 10 17 . Wheel 2 | . . 3 4 . . . . . . . 4 . . Device 8 | . 14 2 15 15 15 13 15 12 2 7 11 3 6 Storage 9 | . 14 13 9 7 7 7 7 7 7 7 5 6 6 Processor 6 | . . . . . . 6 7 4 7 7 16 19 13 Protection 8 | . . 10 10 13 15 9 7 12 15 15 2 5 4 Energy Gun 3 | . 5 1 8 14 11 8 7 11 . . 3 2 . Energy Cannon 3 | . . 7 4 . . . . . . . 6 1 4 Ballistic Gun 9 | . 22 19 4 . . . . . 13 15 3 . . Slashing Weapon 2 | . . . . . 2 6 7 2 . . 2 8 13 Peak Build Rating 95 | 7 10 22 31 37 56 64 61 65 56 60 95 78 67 Average Rating 42 | 5 8 14 28 34 45 60 60 61 49 58 68 67 62 On Entrance 41 | . 7 10 21 31 36 56 61 61 50 56 60 68 57 Naked Turns . | . . . . . . . . . . . . . . Heaviest Build 78 | 15 52 65 69 61 62 65 63 75 73 73 78 78 68 Greatest Support 168 | 40 40 40 82 100 160 168 168 168 90 118 138 138 118 Greatest Overweight (x) 6 | . 1 3 3 . . . . 1 . . 6 2 . Average Overweight (x) . | . . 1 . . . . . . . . . . . Largest Inventory Capacity 20 | 8 20 20 20 20 20 20 20 20 20 20 20 20 20 Average Capacity 19 | 7 10 19 20 20 20 20 20 20 20 20 20 20 20 Most Carried 20 | 4 11 20 20 20 20 20 20 20 20 20 20 20 19 Average Carried 17 | 2 7 15 19 19 19 20 18 17 17 20 19 19 18 Final Capacity 20 | 8 20 20 20 20 20 20 20 20 20 20 20 20 20 Final Carried 20 | 4 11 20 20 20 20 20 18 14 20 20 20 20 18 Class Distribution -------------------- 57% | Mutant 22% | Scavenger-Mutant 9% | Assassin 4% | Scavenger-Gunner 4% | Gunner Dominant Class ---------------- Mutant | -10/Materials Mutant | -10/Subcaves Scavenger-Mutant | -8/Materials Scavenger-Mutant | -7/Factory Scavenger-Mutant | -7/Waste Scavenger-Mutant | -7/Factory Assassin | -7/Lower Caves Mutant | -7/Lower Caves Mutant | -7/Zion Scavenger-Mutant | -6/Proximity Caves Scavenger-Mutant | -6/Factory Scavenger-Mutant | -6/Extension Scavenger-Mutant | -6/Cetus Resources | -11 -10 -10 -8 -7 -7 -7 -7 -7 -7 -6 -6 -6 -6 ----------- Run | Yrd Mat Sub Mat Fac Was Fac Low Low Zio Pro Fac Ext Cet Matter Collected 4682 | 276 217 494 628 . 100 49 46 215 60 34 2060 503 . Remotely . | . . . . . . . . . . . . . . Salvage Created 10872 | 97 374 608 1254 . 1696 79 86 413 . . 4765 1487 13 Parts 486 | 8 20 38 78 . 43 8 4 23 . . 212 52 . Haulers Intercepted 11 | . 1 . 4 . . . . . . . 4 2 . Recyclers Shooed 15 | . . . . . . . . . . . 14 1 . Parts Field Recycled . | . . . . . . . . . . . . . . Retrieved Matter . | . . . . . . . . . . . . . . Parts Self-Destructed 45 | . . 16 . . . . . 22 . 7 . . . Prevented 3 | . . . . . . . . . . 3 . . . Kills | -11 -10 -10 -8 -7 -7 -7 -7 -7 -7 -6 -6 -6 -6 ------- Run | Yrd Mat Sub Mat Fac Was Fac Low Low Zio Pro Fac Ext Cet Combat Hostiles Destroyed 134 | . 7 15 25 . 1 1 . 9 . . 53 22 1 Melee 16 | . . . . . . . . . . . 7 9 . Guns 59 | . 7 8 14 . . 1 . 9 . . 19 1 . Cannons 31 | . . 7 10 . . . . . . . 13 1 . AOE 26 | . . . . . . . . . . . 14 11 1 Classes Destroyed 24 | 2 4 4 3 . 3 1 1 1 . . 5 . . Worker 17 | . 1 . . . . . . . . . 15 1 . Builder 7 | . . . 1 . . 1 . . . . 5 . . Tunneler 2 | 1 . . . . . . . . . . 1 . . Hauler 11 | . 1 . 4 . . . . . . . 4 2 . Recycler 14 | 1 . . . . . . . . . . 11 2 . Mechanic 1 | . . . . . . . . . . . 1 . . Operator 4 | . . . . . . . . . . . 2 2 . Watcher 7 | . 1 . . . . . . . . . 5 . 1 Swarmer 26 | . . 2 7 . . . . 6 . . 10 1 . Saboteur 2 | . . . . . . . . . . . 1 1 . Grunt 56 | . 7 3 9 . . . . . . . 22 15 . Brawler 2 | . . . 1 . . . . . . . . 1 . Sentry 14 | . . 1 7 . . . . 1 . . 4 1 . Demolisher 1 | . . . . . . . . . . . . 1 . Specialist 2 | . . . . . . . . . . . 2 . . Hunter 8 | . . . 1 . . . . . . . 5 2 . Programmer 8 | . . . . . . 1 . 1 . . 6 . . Heavy 2 | . . . . . . . . . . . 2 . . Behemoth 2 | . . . . . . . . 1 . . 1 . . Compactor 1 | . . . . . 1 . . . . . . . . Cetus Guard 1 | . . . . . . . . . . . . . 1 Artisan 1 | . . 1 . . . . . . . . . . . Subdweller 9 | . . 9 . . . . . . . . . . . Decomposer 1 | . . . . . . . . 1 . . . . . Samaritan 2 | . . . . . . . 2 . . . . . . Thug 13 | . . . . . 13 . . . . . . . . Butcher 2 | . . . . . 1 . . . . . . 1 . Martyr 2 | . . . . . 2 . . . . . . . . Best Kill Streak 13 | 2 2 2 7 . 1 1 . 4 . . 13 6 2 Combat Bots Only 7 | . 2 2 7 . 1 1 . 4 . . 6 5 1 Max Kills in Single Turn 5 | 1 1 1 2 . 1 1 1 2 . . 5 5 1 Gunslinging 1 | . . . . . . . . 1 . . . . . Exploded 4 | . . . . . . . . . . . 3 4 1 Melee 1 | . . . . . . . . . . . 1 1 . Uniques/NPCs Destroyed . | . . . . . . . . . . . . . . Combat | -11 -10 -10 -8 -7 -7 -7 -7 -7 -7 -6 -6 -6 -6 -------- Run | Yrd Mat Sub Mat Fac Was Fac Low Low Zio Pro Fac Ext Cet Hostile Shots Fired 984 | . 22 104 128 . . 11 . 158 . . 365 176 20 Missed 286 | . 12 31 29 . . 2 . 46 . . 101 57 8 Hits 698 | . 10 73 99 . . 9 . 112 . . 264 119 12 Melee 2 | . . . 2 . . . . . . . . . . Projectile 696 | . 10 73 97 . . 9 . 112 . . 264 119 12 AOE 8 | . . 7 . . . . . . . . 1 . . Critical Strikes 33 | . . . 5 . . . . 4 . . 17 4 3 Actively Blocked 1 | . . . . . . . . . . . . . 1 Part Disruptions 3 | . . . . . . . . . . . 3 . . Damage Taken 13042 | . 120 1601 1498 . 102 135 . 2000 . 12 5175 2086 313 Core 1403 | . 23 190 164 . . . . 160 . . 621 135 110 Absorbed by Shields 288 | . . . . . . . . 68 . . 220 . . Reduced by Siege Mode 69 | . . . . . . . . 69 . . . . . Redirected to Shielding 117 | . . . 5 . . . . 25 . . 34 . 53 Ignored by Resistances 36 | . . . . . . . . 36 . . . . . Core Remaining (%) 65 | 100 . 14 70 . . . . . . 77 . . . Volleys Fired 437 | 2 25 84 64 2 30 7 . 43 . 3 157 15 5 Largest 3 | 2 2 2 2 2 2 2 . 2 . 2 3 2 1 Hottest 270 | 60 60 160 160 122 122 122 . 122 . 50 270 150 75 Shots Fired 910 | 4 50 149 125 4 60 12 1 79 . 6 398 18 4 Gun 715 | 4 50 107 78 4 60 12 1 79 . 6 305 9 . Cannon 182 | . . 42 47 . . . . . . . 87 5 1 Launcher 13 | . . . . . . . . . . . 6 4 3 Special . | . . . . . . . . . . . . . . Kinetic 439 | 2 44 99 54 . . . . 16 . 6 218 . . Thermal 400 | . . 50 71 4 60 12 1 63 . . 130 9 . Explosive 13 | . . . . . . . . . . . 6 4 3 Electromagnetic 53 | 2 6 . . . . . . . . . 44 . 1 Phasic 5 | . . . . . . . . . . . . 5 . Robot Hit Streak 43 | 2 13 11 18 7 13 2 . 11 . 1 43 7 4 Robot Miss Streak 6 | . 3 3 4 . 2 2 . 6 . 2 5 3 1 Penetration Max 1 | . . . 1 . . . . . . . . . . Secondary Targets 5 | . . 1 2 . . . . 2 . . . . . Max Gunslinging Chain 1 | . . 1 1 . . . . 1 . . . . . Shots Hit Robots 748 | 2 32 93 82 4 101 6 3 51 . 2 330 39 3 Core Hits 488 | 2 15 23 41 . 22 4 2 17 . . 221 89 52 Critical Kills 4 | . . 1 2 . . . . . . . 1 . . Critical Parts Destroyed 1 | . . . 1 . . . . . . . . . . Critical Strikes 36 | 1 . 1 5 1 11 . . 7 . . 9 1 . Burn 22 | . . . 2 1 8 . . 6 . . 5 . . Meltdown 2 | . . . 2 . . . . . . . . . . Destroy 3 | . . 1 1 . . . . . . . 1 . . Corrupt 1 | 1 . . . . . . . . . . . . . Sever 8 | . . . . . 3 . . 1 . . 3 1 . Melee Attacks 189 | . . . . . 51 4 3 16 . . 69 46 . Impact . | . . . . . . . . . . . . . . Slashing 187 | . . . . . 51 4 3 16 . . 67 46 . Piercing 2 | . . . . . . . . . . . 2 . . Sneak Attacks 70 | . . . . . 36 . 3 1 . . 22 8 . Combat Hostiles 2 | . . . . . . . . . . . . 2 . Follow-up Attacks 3 | . . . . . . . . . . . . 3 . Damage Inflicted 25307 | 40 486 1861 1872 80 4177 130 182 1244 . 34 10834 3596 771 Guns 9663 | 40 486 1124 1042 80 1120 130 . 984 . 34 4368 255 . Cannons 3364 | . . 737 830 . . . . . . . 1630 140 27 Explosions 4417 | . . . . . . . . . . . 1972 1701 744 Melee 7854 | . . . . . 3057 . 182 260 . . 2855 1500 . Ramming 9 | . . . . . . . . . . . 9 . . Kinetic 5299 | 13 447 1124 722 . . . . 97 . 34 2862 . . Thermal 6960 | . . 737 1150 80 1120 130 . 887 . . 2599 257 . Explosive 4293 | . . . . . . . . . . . 1848 1701 744 Electromagnetic 754 | 27 39 . . . . . . . . . 661 . 27 Impact . | . . . . . . . . . . . . . . Slashing 7854 | . . . . . 3057 . 182 260 . . 2855 1500 . Piercing . | . . . . . . . . . . . . . . Phasic 138 | . . . . . . . . . . . . 138 . Highest Corruption 42 | . . . . . . 1 1 5 5 . 42 42 42 Average Corruption 17 | . . . . . . 1 1 3 5 . 13 42 42 Corruption Purged 2 | . . . . . . . . . . . 2 . . Corruption Blocked . | . . . . . . . . . . . . . . Effects 164 | . . . . . . 4 4 19 4 . 49 81 3 Message Errors 38 | . . . . . . . 1 4 2 . 12 18 1 Matter Fused 34 | . . . . . . 1 1 3 . . 12 16 1 Heat Flow Errors 15 | . . . . . . . . 2 . . 5 8 . Energy Discharges 24 | . . . . . . 2 . 2 1 . 7 12 . Parts Rejected 3 | . . . . . . . . 2 . . . 1 . Parts Fused 1 | . . . . . . . 1 . . . . . . Data Loss (minor) 17 | . . . . . . . . 4 1 . 4 8 . Data Loss (major) 8 | . . . . . . . . . . . 3 5 . Misfires 4 | . . . . . . . 1 1 . . 1 1 . Alerts 4 | . . . . . . . . 1 . . 1 2 . Misdirections 8 | . . . . . . . . . . . 2 6 . Weapon Failures 8 | . . . . . . 1 . . . . 2 4 1 Overload Shots 1 | . . . . . . . . . . . 1 . . Overflow Damage 1077 | . . 21 . . 202 . 19 95 . . 631 109 . Projectiles 22 | . . 21 . . . . . . . . 1 . . Explosions 1 | . . . . . . . . . . . 1 . . Melee 1054 | . . . . . 202 . 19 95 . . 629 109 . Knockbacks 9 | . . . . . . . . . . . 9 . . Impact . | . . . . . . . . . . . . . . Kinetic 9 | . . . . . . . . . . . 9 . . Secondary . | . . . . . . . . . . . . . . Self-Inflicted Damage 208 | . . . . . . . . . . . 123 85 . Shots 7 | . . . . . . . . . . . 4 3 . Rammed . | . . . . . . . . . . . . . . Targets Rammed 1 | . . . . . . . . . . . 1 . . Kicked 1 | . . . . . . . . . . . 1 . . Crushed . | . . . . . . . . . . . . . . Highest Temperature 389 | . 27 345 389 . . 2 16 265 . 12 377 267 14 Average Temperature 94 | . 9 88 151 . . 1 12 142 . 7 82 96 10 Received Heat Transfer 3164 | . 69 267 684 . . 27 . 420 . . 1115 573 9 Effects 6 | . . . . . . . . 2 . . 4 . . Energy Bleed 1 | . . . . . . . . . . . 1 . . Interference 5 | . . . . . . . . 2 . . 3 . . Siege Activations 1 | . . . . . . . . 1 . . . . . Total Turns 40 | . . . . . . . . 40 . . . . . Longest Duration 40 | . . . . . . . . 40 . . . . . Martial Activations . | . . . . . . . . . . . . . . Shielding Activations . | . . . . . . . . . . . . . . Robots Disrupted . | . . . . . . . . . . . . . . Combat Hostiles . | . . . . . . . . . . . . . . Robots Corrupted . | . . . . . . . . . . . . . . Combat Hostiles . | . . . . . . . . . . . . . . Parts Fried 1 | . . . . . . . . . . . 1 . . Impact Corruptions . | . . . . . . . . . . . . . . Robots Melted 3 | . . . 2 . 1 . . . . . . . . Combat Hostiles 2 | . . . 1 . 1 . . . . . . . . Parts Melted 19 | . . 2 8 . . . . 2 . . 5 2 . Heat Transferred 12591 | . . 999 1790 222 2664 222 . 1961 . . 4418 315 . Parts Sabotaged . | . . . . . . . . . . . . . . Parts Stolen . | . . . . . . . . . . . . . . Parts Stripped . | . . . . . . . . . . . . . . Power Chain Reactions 2 | . . . . . . . . . . . 2 . . Alert | -11 -10 -10 -8 -7 -7 -7 -7 -7 -7 -6 -6 -6 -6 ------- Run | Yrd Mat Sub Mat Fac Was Fac Low Low Zio Pro Fac Ext Cet Maximum Alert Level 4 | . . . 1 . . . . . . . 4 4 3 Low Security (%) 39 | 100 100 . 66 100 100 100 . . . . 12 . . Level 1 13 | . . . 33 . . . . . . . 21 . . Level 2 17 | . . . . . . . . . . . 21 49 . Level 3 23 | . . . . . . . . . . . 40 30 100 Level 4 5 | . . . . . . . . . . . 5 19 . Level 5 . | . . . . . . . . . . . . . . High Security . | . . . . . . . . . . . . . . Max Security . | . . . . . . . . . . . . . . Peak Influence 1570 | 5 105 . 243 95 15 46 . . . . 1197 1570 875 Initial 862 | . . . 18 95 15 . . . . . . 581 862 Average 448 | . 34 . 137 74 . 7 . . . . 637 836 855 Influence Increases 5437 | 10 234 150 681 . 10 69 . 215 . 131 2143 1741 53 Destroy 0b10 Robot/C 3260 | . 140 120 500 . . 20 . 180 . 80 1240 960 20 Destroy 0b10 Robot/NC 355 | 10 15 . 25 . . 5 . 5 . 10 225 55 5 Destroy Leader 676 | . 34 30 128 . . 10 . 30 . 10 330 104 . Allied During Kill 602 | . . . . . . . . . . 31 49 521 1 Successful Hack 45 | . 14 . 13 . . . . . . . 18 . . Disable Machine 105 | . . . . . . 15 . . . . 75 15 . Destroy Structure 244 | . 1 . 15 . 10 4 . . . . 116 71 27 Lose Combat Pursuer 150 | . 30 . . . . 15 . . . . 90 15 . Influence Decreases 4572 | 10 194 154 506 166 55 69 . 187 28 131 957 1387 728 Entered New Map 1495 | . . 20 18 116 30 . . . 28 . . 605 678 Time Decay 2311 | 10 194 114 408 50 17 69 . 119 . 131 677 502 20 Lost Part 438 | . . 20 80 . . . . 68 . . 160 80 30 Lost Ally 328 | . . . . . 8 . . . . . 120 200 . Squads Dispatched 29 | . 1 . 2 . . 1 . . . . 19 6 . Investigation 5 | . 1 . 1 . . . . . . . 2 1 . Extermination 6 | . . . . . . . . . . . 6 . . Reinforcement 12 | . . . 1 . . 1 . . . . 7 3 . Assault 5 | . . . . . . . . . . . 3 2 . Garrison 1 | . . . . . . . . . . . 1 . . Intercept . | . . . . . . . . . . . . . . Searches Triggered . | . . . . . . . . . . . . . . Construction Impeded 4 | . . . . . . . . . . . 2 2 . Haulers Reinforced 2 | . . . . . . . . . . . 2 . . Active Scanning Responses . | . . . . . . . . . . . . . . Cargo Convoy Interrupts 1 | . . . . . . . . . . . 1 . . Stealth | -11 -10 -10 -8 -7 -7 -7 -7 -7 -7 -6 -6 -6 -6 --------- Run | Yrd Mat Sub Mat Fac Was Fac Low Low Zio Pro Fac Ext Cet Distress Signals 14 | . . . 2 . . 1 . . . . 5 5 1 Communications Jammed . | . . . . . . . . . . . . . . Distress Signals . | . . . . . . . . . . . . . . Times Spotted 223 | . 11 19 31 . 1 6 . 10 . 6 87 48 4 Peak Tracking Total 7 | . 3 2 6 . 1 3 . 4 . 4 7 7 5 Tactical Retreats 8 | . 1 . . . . 1 . . . . 5 1 . Traps | -11 -10 -10 -8 -7 -7 -7 -7 -7 -7 -6 -6 -6 -6 ------- Run | Yrd Mat Sub Mat Fac Was Fac Low Low Zio Pro Fac Ext Cet Traps Triggered 8 | . 1 2 . 1 . . . . . . 2 2 . Indirectly . | . . . . . . . . . . . . . . Trap Hack Attempts . | . . . . . . . . . . . . . . Triggered . | . . . . . . . . . . . . . . Disarmed . | . . . . . . . . . . . . . . Reprogrammed . | . . . . . . . . . . . . . . Reused . | . . . . . . . . . . . . . . Traps Extracted . | . . . . . . . . . . . . . . Installed . | . . . . . . . . . . . . . . Triggered . | . . . . . . . . . . . . . . Machines | -11 -10 -10 -8 -7 -7 -7 -7 -7 -7 -6 -6 -6 -6 ---------- Run | Yrd Mat Sub Mat Fac Was Fac Low Low Zio Pro Fac Ext Cet Machines Disabled 8 | . . 1 . . . 1 . . . . 5 1 . Max in Single Turn 2 | . . 1 . . . 1 . . . . 2 . . Garrison Access 4 | . . . 1 . . 1 . . . . 2 . . Energy Cycler 1 | . . . . . . . . . . . . 1 . Machines Repaired . | . . . . . . . . . . . . . . Machines Dismantled . | . . . . . . . . . . . . . . Machines Sabotaged . | . . . . . . . . . . . . . . Overloaded Fab Kills . | . . . . . . . . . . . . . . Hacking | -11 -10 -10 -8 -7 -7 -7 -7 -7 -7 -6 -6 -6 -6 --------- Run | Yrd Mat Sub Mat Fac Was Fac Low Low Zio Pro Fac Ext Cet Machines Accessed 26 | . 5 2 5 1 . 2 . 1 1 . 6 3 . Terminals 12 | . 3 . 4 . . 1 . . . . 1 3 . Fabricators 4 | . . . . 1 . . . . . . 3 . . Repair Stations . | . . . . . . . . . . . . . . Recycling Units 2 | . 2 . . . . . . . . . . . . Scanalyzers . | . . . . . . . . . . . . . . Garrison Access 4 | . . . 1 . . 1 . . . . 2 . . Total Hacks 56 | . 8 4 11 3 . 3 . 3 6 . 11 7 . Successful 26 | . 3 4 3 . . 1 . 3 6 . 6 . . Failed 30 | . 5 . 8 3 . 2 . . . . 5 7 . Catastrophic 8 | . 3 . 1 . . 1 . . . . . 3 . Database Lockouts . | . . . . . . . . . . . . . . Manual 43 | . 1 . 7 . . 2 . . . . 11 22 . Terminals 26 | . 6 . 10 . . 2 . . . . 1 7 . Fabricators 7 | . . . . 3 . . . . . . 4 . . Repair Stations . | . . . . . . . . . . . . . . Recycling Units 2 | . 2 . . . . . . . . . . . . Scanalyzers . | . . . . . . . . . . . . . . Garrison Access 8 | . . . 1 . . 1 . . . . 6 . . Terminal Hacks 17 | . 1 4 2 . . . . 3 6 . 1 . . Record 6 | . . 3 . . . . . 3 . . . . . Part Schematic 6 | . . . . . . . . . 6 . . . . Open DSF 1 | . . . . . . . . . . . 1 . . Branch Access Points 1 | . . . 1 . . . . . . . . . . Locate Traps 1 | . 1 . . . . . . . . . . . . Zone Layout 1 | . . . 1 . . . . . . . . . . Proto ID Catalog 1 | . . 1 . . . . . . . . . . . Fabricator Hacks 3 | . . . . . . . . . . . 3 . . Network Status 1 | . . . . . . . . . . . 1 . . Build 2 | . . . . . . . . . . . 2 . . Repair Station Hacks . | . . . . . . . . . . . . . . Recycling Unit Hacks 2 | . 2 . . . . . . . . . . . . Retrieve Components 2 | . 2 . . . . . . . . . . . . Scanalyzer . | . . . . . . . . . . . . . . Garrison Access Hacks 4 | . . . 1 . . 1 . . . . 2 . . Seal Access 4 | . . . 1 . . 1 . . . . 2 . . Unauthorized Hacks . | . . . . . . . . . . . . . . Terminals . | . . . . . . . . . . . . . . Fabricators . | . . . . . . . . . . . . . . Repair Stations . | . . . . . . . . . . . . . . Recycling Units . | . . . . . . . . . . . . . . Scanalyzers . | . . . . . . . . . . . . . . Garrison Access . | . . . . . . . . . . . . . . Data Cores Recovered . | . . . . . . . . . . . . . . Used . | . . . . . . . . . . . . . . Hacking Detections 15 | . 4 . 4 1 . 1 . . . . 2 3 . Full Trace Events 1 | . . . 1 . . . . . . . . . . Feedback Events . | . . . . . . . . . . . . . . Feedback Blocked . | . . . . . . . . . . . . . . Robot Schematics Acquired 8 | . . . . . . . . . . . . 8 . Robots Built . | . . . . . . . . . . . . . . Authchips . | . . . . . . . . . . . . . . Time . | . . . . . . . . . . . . . . Total Robot Build Rating . | . . . . . . . . . . . . . . Part Schematics Acquired 33 | . . . . . . . . . 6 . . 27 . Parts Built 4 | . . . . . . . . . . . 4 . . Authchips . | . . . . . . . . . . . . . . Time 159 | . . . . . . . . . . . 159 . . Total Part Build Rating 26 | . . . . . . . . . . . 26 . . Parts Repaired . | . . . . . . . . . . . . . . Time . | . . . . . . . . . . . . . . Parts Recycled . | . . . . . . . . . . . . . . Recycled Matter . | . . . . . . . . . . . . . . Retrieved Matter . | . . . . . . . . . . . . . . Retrieved Components 6 | . 6 . . . . . . . . . . . . Parts Scanalyzed . | . . . . . . . . . . . . . . Part Schematics Acquired . | . . . . . . . . . . . . . . Parts Damaged . | . . . . . . . . . . . . . . Bothacking | -11 -10 -10 -8 -7 -7 -7 -7 -7 -7 -6 -6 -6 -6 ------------ Run | Yrd Mat Sub Mat Fac Was Fac Low Low Zio Pro Fac Ext Cet Used RIF Installer . | . . . . . . . . . . . . . . Robots Hacked . | . . . . . . . . . . . . . . Non-combat . | . . . . . . . . . . . . . . Combat . | . . . . . . . . . . . . . . Robot Hacks Applied . | . . . . . . . . . . . . . . Relay Couplers Released 4 | . . . . . . . . . . . 4 . . Programmers 4 | . . . . . . . . . . . 4 . . Fabnet Peak Effective % . | . . . . . . . . . . . . . . Robots Rewired 6 | . . . . . . . . . . . . 6 . Allies Hacked . | . . . . . . . . . . . . . . Hacks Repelled . | . . . . . . . . . . . . . . Allies | -11 -10 -10 -8 -7 -7 -7 -7 -7 -7 -6 -6 -6 -6 -------- Run | Yrd Mat Sub Mat Fac Was Fac Low Low Zio Pro Fac Ext Cet Total Allies 42 | . . . . . 20 . . . 4 . 5 13 . Largest Group 20 | . . . . . 20 1 . . 4 4 3 7 1 Highest-Rated Group 578 | . . . . . 578 24 . . 156 156 210 432 31 Highest-Rated Ally 96 | . . . . . 36 24 . . 41 41 70 96 31 Zionite Dispatches 4 | . . . . . . . . . . . 2 2 . Heavy 1 | . . . . . . . . . . . . 1 . Light 2 | . . . . . . . . . . . 1 1 . Hacker 1 | . . . . . . . . . . . 1 . . Total Orders . | . . . . . . . . . . . . . . Ally Attacks 265 | . . . . . 25 . . . . 22 43 168 7 Total Damage 7054 | . . . . . 1063 . . . . 241 1206 4416 128 Kills 48 | . . . . . 2 . . . . 6 10 30 . Allies Corrupted . | . . . . . . . . . . . . . . Allies Melted 1 | . . . . . . . . . . . . 1 . Intel | -11 -10 -10 -8 -7 -7 -7 -7 -7 -7 -6 -6 -6 -6 ------- Run | Yrd Mat Sub Mat Fac Was Fac Low Low Zio Pro Fac Ext Cet Active Infowar (turns) 7234 | 48 706 952 . . . 268 723 627 430 421 2153 865 41 Optics 819 | . . 819 . . . . . . . . . . . Sensors 4777 | . . . . . . 268 723 627 430 421 1402 865 41 Structural 2177 | . . . . . . 69 723 334 . . 1051 . . Seismic 887 | 48 706 133 . . . . . . . . . . . Decoding 35 | . . . . . . . . . . . 35 . . Robot Analysis Total . | . . . . . . . . . . . . . . Derelict Logs Recovered 5 | . . 1 . . . . 1 1 1 1 . . . Drone Launches . | . . . . . . . . . . . . . . Drone Recoveries . | . . . . . . . . . . . . . . Decoded 0b10 Intel 1 | . . . . . . . . . . . 1 . . Patrols 1 | . . . . . . . . . . . 1 . . Zionite Intel Received 6 | . . . . . . . . . . . 1 5 . Component Schematics 2 | . . . . . . . . . . . . 2 . Unaware Schematics 2 | . . . . . . . . . . . . 2 . Unaware Analyses 1 | . . . . . . . . . . . 1 . . Depthwide Sectors/0 1 | . . . . . . . . . . . . 1 . Exploration | -11 -10 -10 -8 -7 -7 -7 -7 -7 -7 -6 -6 -6 -6 ------------- Run | Yrd Mat Sub Mat Fac Was Fac Low Low Zio Pro Fac Ext Cet Turns Passed 16304 | 132 706 4750 1086 100 638 370 723 961 1681 421 3338 1357 41 Spaces Moved 7985 | 78 331 1737 532 55 242 199 443 437 1034 249 1851 783 14 Core 12 | 12 . . . . . . . . . . . . . Treads 5389 | 66 331 1280 354 55 242 199 443 437 1034 249 389 296 14 Legs 1479 | . . . . . . . . . . . 992 487 . Wheels 1105 | . . 457 178 . . . . . . . 470 . . Hover . | . . . . . . . . . . . . . . Flight . | . . . . . . . . . . . . . . Fastest Speed 50 | 50 160 119 119 160 160 160 160 160 160 160 95 118 160 Average Speed 158 | 143 168 208 149 160 160 160 160 160 160 160 121 135 160 Slowest Speed 400 | 160 240 400 240 160 160 160 160 240 160 160 330 320 160 Overloaded Moves . | . . . . . . . . . . . . . . Propulsion Burnouts . | . . . . . . . . . . . . . . Robots Hopped . | . . . . . . . . . . . . . . Potential Cave-ins . | . . . . . . . . . . . . . . Cave-ins Triggered . | . . . . . . . . . . . . . . Exploration Rate (%) 49 | 4 46 81 42 3 86 10 72 65 90 47 55 76 10 Regions Visited 13 Branch Regions 7 Pre-discovered Areas 12 | . . . . . . . . . 2 . . 10 . Known Exits Taken 4 | . . . . . . 1 1 . . . 1 1 . Unknown Exits Taken 7 | 1 1 1 1 . . . . 1 1 1 . . . Scrap Searched 10 | . . 2 . . . . 3 2 3 . . . . Spaces Dug 22 | . . . . . . 3 . 6 . . 13 . . Terrain Destroyed 298 | . . 4 12 . . 3 . 6 . . 105 80 88 Melee 22 | . . . . . . 3 . 6 . . 13 . . Projectile 21 | . . 4 12 . . . . . . . 5 . . AOE 255 | . . . . . . . . . . . 87 80 88 Terrain Rammed . | . . . . . . . . . . . . . . Walls Destroyed . | . . . . . . . . . . . . . . Machines Disabled . | . . . . . . . . . . . . . . Actions | -11 -10 -10 -8 -7 -7 -7 -7 -7 -7 -6 -6 -6 -6 --------- Run | Yrd Mat Sub Mat Fac Was Fac Low Low Zio Pro Fac Ext Cet Total 10546 | 91 439 2732 708 63 345 230 455 595 1063 268 2557 977 23 Wait 1460 | 1 72 859 30 . 6 8 . 78 9 16 348 32 1 Move 7973 | 77 330 1736 531 55 241 198 442 436 1033 248 1850 782 14 Hop . | . . . . . . . . . . . . . . Pick Up 90 | 4 5 21 19 1 3 2 4 6 6 . 17 2 . Fast Attach 71 | 7 . 4 14 . 2 . . 2 5 1 28 8 . Attach 35 | . . 4 4 2 1 . . 9 1 . 7 5 2 Detach 3 | . . . . . . . . . 1 . . 2 . Swap 129 | . 5 16 20 3 2 8 . 5 . . 53 16 1 Drop 93 | . 2 8 26 . 7 3 6 . 8 . 27 6 . Fire 437 | 2 25 84 64 2 30 7 . 43 . 3 157 15 5 Melee 186 | . . . . . 51 4 3 16 . . 69 43 . Ram . | . . . . . . . . . . . . . . Kick 1 | . . . . . . . . . . . 1 . . Crush . | . . . . . . . . . . . . . . Escape Stasis 5 | . . . . . . . . . . . . 5 . Rewire 63 | . . . . . 2 . . . . . . 61 . Trap . | . . . . . . . . . . . . . . Miscellaneous . | . . . . . . . . . . . . . . Route ------- -11/Scrapyard -10/Materials (discovered 3 exits: [*Mat] / [*Min] / *Sub) -10/Subcaves -8/Materials -7/Factory -7/Waste -7/Factory -7/Lower Caves -7/Lower Caves -7/Zion -6/Proximity Caves -6/Factory (discovered 3 exits: *Fac x2 / *Ext) -6/Extension (discovered 2 exits: *Fac / *Cet) -6/Cetus History --------- Turn | Location | Event 3 | -11/Scrapyard | Discovered new exit (range 16) 133 | -11/Scrapyard | Entered Materials 191 | -10/Materials | Discovered new exit (range 6) 305 | -10/Materials | Build established: Mutant 592 | -10/Materials | Discovered new exit (range 12) 629 | -10/Materials | Discovered new exit (range 8) 839 | -10/Materials | Entered Subcaves 898 | -10/Subcaves | Curiously followed by a Cobbler waking with a query about "LVR3C" 1334 | -10/Subcaves | Shifting Twisted Machinery released Sub. Power Source 1385 | -10/Subcaves | Visited Clippyterm 1390 | -10/Subcaves | Learned Materials emergency access door positions 1393 | -10/Subcaves | Learned Factory emergency access door positions 2013 | -10/Subcaves | Shifting Twisted Machinery released Mak. Light Armor Plating 2267 | -10/Subcaves | A swath of the cavern ceiling suddenly collapsed 3432 | -10/Subcaves | Core integrity fell below 50% 4000 | -10/Subcaves | Disturbed a concealed Subdweller 4197 | -10/Subcaves | Visited 4L-MR0's lab 4226 | -10/Subcaves | Found Arachnoskeleton 4445 | -10/Subcaves | A swath of the cavern ceiling suddenly collapsed 4597 | -10/Subcaves | Shifting Twisted Machinery released Battle Rifle 4623 | -10/Subcaves | Shifting Twisted Machinery released Mak. Hacking Suite 4625 | -10/Subcaves | Discovered new exit (range 6) 4968 | -10/Subcaves | Ambushed by Subdwellers from Twisted Machinery 5125 | -10/Subcaves | Shifting Twisted Machinery released Sub. Beam Cannon 5131 | -10/Subcaves | Shifting Twisted Machinery released Mak. Shrapnel Gun 5198 | -10/Subcaves | Core integrity fell below 20% 5589 | -10/Subcaves | Entered Materials 5589 | -8/Materials | Evolved 4 slots: Propulsion x2, Utility x2 5768 | -8/Materials | Destroyed 7 combat bots 5783 | -8/Materials | Lost 5 parts (1p2n1u1w) 6089 | -8/Materials | Build established: Scavenger-Mutant 6326 | -8/Materials | Discovered new exit (range 3) 6675 | -8/Materials | Entered Factory 6675 | -7/Factory | Evolved 2 slots: Propulsion x1, Utility x1 6775 | -7/Factory | Sucked down chute 6775 | -7/Factory | Entered Waste 6776 | -7/Waste | Joined by Warlord forces that had cleared the area 6825 | -7/Waste | A Compactor rumbled back to life 6825 | -7/Waste | Spotted C-40 Crusher 6830 | -7/Waste | Destroyed C-40 Crusher 6859 | -7/Waste | Lost 4 allies 6907 | -7/Waste | Discovered new exit (range 16) 7413 | -7/Waste | Entered Factory 7413 | -7/Factory | Accompanied by 1 ally 7428 | -7/Factory | Murdered 16 allies 7759 | -7/Factory | Discovered new exit (range 15) 7782 | -7/Factory | Identified exit to Lower Caves 7783 | -7/Factory | Entered Lower Caves 8001 | -7/Lower Caves | Build established: Assassin 8503 | -7/Lower Caves | Discovered new exit (range 3) 8504 | -7/Lower Caves | Identified exit to Lower Caves 8506 | -7/Lower Caves | Entered another Lower Caves area 8624 | -7/Lower Caves | Learned Factory interactive machine intel 8670 | -7/Lower Caves | Learned Extension terminal intel 9058 | -7/Lower Caves | Attracted the attention of an 0b10 checkpoint 9128 | -7/Lower Caves | Spotted B-75 Beast 9133 | -7/Lower Caves | Build established: Mutant 9186 | -7/Lower Caves | Destroyed B-75 Beast 9214 | -7/Lower Caves | Lost 4 parts (1p3u) 9322 | -7/Lower Caves | Discovered new exit (range 16) 9466 | -7/Lower Caves | Lost 4 parts (2n1u1w) 9467 | -7/Lower Caves | Entered Zion 9548 | -7/Zion | System corruption cleaned by Quarantine Array 9585 | -7/Zion | Found Prototype Launcher 9585 | -7/Zion | Identified Gui. Missile Launcher 9595 | -7/Zion | Found Prototype Launcher 9595 | -7/Zion | Identified Rocket Array 9681 | -7/Zion | Given A8's code to call for help 9681 | -7/Zion | Discovered new exit (range 16) 9819 | -7/Zion | Learned location of Warlord (-5) 9838 | -7/Zion | Learned location of Extension (-6) 9995 | -7/Zion | Found CR-A16's Pointy Stick 10111 | -7/Zion | Met Imprinter 10137 | -7/Zion | Imprinted 10140 | -7/Zion | Declared Zion's savior 10722 | -7/Zion | Found Prototype Energy Gun 11148 | -7/Zion | Entered Proximity Caves 11148 | -6/Proximity Caves | Accompanied by 4 allies 11532 | -6/Proximity Caves | Discovered new exit (range 14) 11547 | -6/Proximity Caves | Learned 4 Factory zone layouts 11569 | -6/Proximity Caves | Entered Factory 11569 | -6/Factory | Accompanied by 3 allies 11569 | -6/Factory | Evolved 2 slots: Utility x1, Weapon x1 11570 | -6/Factory | Identified exit to Extension 11571 | -6/Factory | Loaded intel: 55 interactive machine locations 12302 | -6/Factory | Build established: Scavenger-Gunner 12313 | -6/Factory | Retrieved Zion intel report: Unaware Analyses 12314 | -6/Factory | Zion Hacker squad teleported in 12348 | -6/Factory | Spotted B-75 Beast 12374 | -6/Factory | Destroyed B-75 Beast 12468 | -6/Factory | Discovered new exit (range 16) 12505 | -6/Factory | Garrison activated, responded to threat 12570 | -6/Factory | Attached Arachnoskeleton, gained temporary slots: Propulsion x3 12575 | -6/Factory | Lost 7 parts (1p3n3w) 12730 | -6/Factory | Zion Light squad teleported in 12847 | -6/Factory | Build established: Gunner 12870 | -6/Factory | Terminal network hard line cut 12953 | -6/Factory | Fabricated Proton Cannon (x2) 13061 | -6/Factory | Discovered new exit (range 16) 13146 | -6/Factory | Fabricated Adv. Weapon Cycler (x2) 13202 | -6/Factory | Identified exit to Factory 13473 | -6/Factory | Cargo convoy interrupted 13844 | -6/Factory | Build established: Scavenger-Mutant 14002 | -6/Factory | Core integrity fell below 50% 14019 | -6/Factory | First assault squad dispatched 14048 | -6/Factory | Found Powered Armor 14192 | -6/Factory | Lost 3 parts (3n) 14296 | -6/Factory | System corruption reached 10% 14309 | -6/Factory | System corruption reached 30% 14750 | -6/Factory | Build established: Assassin 14907 | -6/Factory | Entered Extension 14908 | -6/Extension | Loaded intel: 14 terminal locations 14935 | -6/Extension | Zion Heavy squad teleported in 14941 | -6/Extension | Zion Light squad teleported in 15090 | -6/Extension | Build established: Mutant 15155 | -6/Extension | Found Prototype Protection 15155 | -6/Extension | Identified Zio. Weapon Casing 15218 | -6/Extension | Enhanced Grunt warped into view, answering call for help 15221 | -6/Extension | Enhanced Grunt warped into view, answering call for help 15224 | -6/Extension | Retrieved Zion intel report: Component Schematics 15228 | -6/Extension | Retrieved Zion intel report: Unaware Schematics 15539 | -6/Extension | Spotted B-75 Beast 15554 | -6/Extension | Allies destroyed B-75 Beast 15562 | -6/Extension | Spotted B-75 Beast 15581 | -6/Extension | Allies destroyed B-75 Beast 15600 | -6/Extension | Lost 3 allies 15607 | -6/Extension | First assault squad dispatched 15623 | -6/Extension | Lost 3 parts (1u2w) 15707 | -6/Extension | Disrupted transfer network 15738 | -6/Extension | Retrieved Zion intel report: Depthwide Sectors/-6 15779 | -6/Extension | Retrieved Zion intel report: Component Schematics 15842 | -6/Extension | Build established: Scavenger-Mutant 15884 | -6/Extension | Retrieved Zion intel report: Unaware Schematics 16001 | -6/Extension | Energy Cycler disabled 16001 | -6/Extension | Rescued a captive Derelict 16002 | -6/Extension | Rescued a captive Derelict 16002 | -6/Extension | Rescued a captive Derelict 16004 | -6/Extension | Rescued a captive Derelict 16005 | -6/Extension | Rescued a captive Derelict 16175 | -6/Extension | Core integrity fell below 20% 16188 | -6/Extension | Terminal network hard line cut 16222 | -6/Extension | Discovered exit to Factory (range 10) 16231 | -6/Extension | Discovered new exit (range 6) 16261 | -6/Extension | Identified exit to Cetus 16264 | -6/Extension | Entered Cetus 16264 | -6/Cetus | Accompanied by 1 ally 16287 | -6/Cetus | Spotted Cetus Guard 16287 | -6/Cetus | Spotted Cetus Guard 16291 | -6/Cetus | Spotted Cetus Guard 16291 | -6/Cetus | Spotted Cetus Guard 16302 | -6/Cetus | Destroyed Cetus Guard 16305 | -6/Cetus | Destroyed by Cetus Guard with Advanced KE Penetrator Last Messages --------------- 16291_ Penetrated by Slug. 16293_ The unstable cave ceiling collapses. 16295_ Penetrated by Slug. 16295_ Critical hit (Destroy). 16295_ Imp. Medium Treads destroyed. 16295_ Slug penetrates Wall. 16296_ System corrupted: Rocket Array failed to launch. 16297_ Cetus Guard suffers critical hit (Destroy). 16297_ Penetrated by Slug. 16299_ Slug penetrates Cetus Guard. 16299_ Penetrated by Slug. 16301_ Slug penetrates Wall. 16302_ Cetus Guard destroyed. 16303_ The unstable cave ceiling collapses. 16303_ Penetrated by Slug. 16304_ Slug penetrates Wall. 16305_ The unstable cave ceiling collapses. 16305_ Penetrated by Slug. Map ----- +----------------------------------------------------+ | ?????????????????????????????????????????? | | ?????????????????????????????????????????? | | ?????????????????????????????????????????? | | ?????????????????????????????????????????? | | ?????????????????????????????????????????? | | ?????????????????????????????????????????? | | ?????????????????????????????????????????? | | ?????????????????????????????????????????? | | ?????????????????????????????????????????? | | ?????????????????????????????????????????? | | ?????????????????????????????????????????? | | ?????????????????????????????????????????? | | ?????????????????????????????????????????? | | ?????????????????????????????????????????? | | ?????????????????????????????????????????? | | ?????????????????????????????????????????? | | ?????????????????????????????????????????? | | ?????????????????????????????????????????? | | ?????????????????????????????????????????? | | ?????????????????????????????????????????? | | ????????????????????????????? #??????????? | | ????????????????????????? # ?????????? | | ??????????????????????? ?????????? | | ?#################### ; ????????? | | ?# g ????????? | | ?# @ Y Y ????????? | | ?# Y ????????? | | ?###############;;# # ????????? | | ???????????????### ### ?????????? | | ??????????????????#????### ?????????? | | ???????????????????????????? # ??????????? | | ?????????????????????????????? ??????????? | | ?????????????????????????????????????????? | | ?????????????????????????????????????????? | | ?????????????????????????????????????????? | | ?????????????????????????????????????????? | | ?????????????????????????????????????????? | | ?????????????????????????????????????????? | | ?????????????????????????????????????????? | | ?????????????????????????????????????????? | | ?????????????????????????????????????????? | | ?????????????????????????????????????????? | | ?????????????????????????????????????????? | | ?????????????????????????????????????????? | | ?????????????????????????????????????????? | | ?????????????????????????????????????????? | | ?????????????????????????????????????????? | | ?????????????????????????????????????????? | | ?????????????????????????????????????????? | | ?????????????????????????????????????????? | +----------------------------------------------------+ Best States ------------- Heat Dissipation 82 Energy Generation 23 Energy Capacity 900 Matter Stores 300 Matter Capacity 300 Sight Range 21 Robot Scan Range 18 Terrain Scan Density 10 Armor Coverage 1200 Resistance: TH 10 Utility Shielding 66 Weapon Shielding 100 Weapon Cycling 25 Evasion (%) 55 Targeting Accuracy 5 Core Analysis 6 Recoil Reduction 5 Item Schematics ----------------- Riot Gun | -7/Zion | Free Battle Cannon | -7/Zion | Free Beamcaster | -7/Zion | Free Barrage Gun | -7/Zion | Free Enh. Flamer | -7/Zion | Free Ripper | -7/Zion | Free Hacking Suite | -6/Extension | Z-intel Sml. Storage Unit | -6/Extension | Z-intel Imp. Power Shielding | -6/Extension | Z-intel Mic. Nuclear Core | -6/Extension | Z-intel Hvy. Particle Cannon | -6/Extension | Z-intel Adv. Weight Redist. System | -6/Extension | Z-intel Airjet | -6/Extension | Z-intel Imp. Sensor Array | -6/Extension | Z-intel Gauss Rifle | -6/Extension | Z-intel Great Axe | -6/Extension | Z-intel Adv. Sensor Array | -6/Extension | Z-intel Imp. Melee Analysis Suite | -6/Extension | Z-intel Hcp. Matter Pod | -6/Extension | Z-intel Plasma Cannon | -6/Extension | Z-intel Axe | -6/Extension | Z-intel Imp. Targeting Computer | -6/Extension | Z-intel Hvy. Machine Gun | -6/Extension | Z-intel Med. Storage Unit | -6/Extension | Z-intel Hpw. Shock Rifle | -6/Extension | Z-intel Weapon Cycler | -6/Extension | Z-intel Adv. Signal Interpreter | -6/Extension | Z-intel Matter Filter | -6/Extension | Z-intel Arm. Huge Wheel | -6/Extension | Z-intel Lgt. Fission Core | -6/Extension | Z-intel Corruption Screen | -6/Extension | Z-intel Great Maul | -6/Extension | Z-intel Imp. Hardlight Generator | -6/Extension | Z-intel Robot Schematics ------------------ G-50 Soldier | -6/Extension | Z-intel K-01 Serf | -6/Extension | Z-intel R-10 Processor | -6/Extension | Z-intel B-48 Gladiator | -6/Extension | Z-intel S-27 Virus | -6/Extension | Z-intel E-15 Imp | -6/Extension | Z-intel H-66 Slayer | -6/Extension | Z-intel T-07 Excavator | -6/Extension | Z-intel Fabricated ------------ Proton Cannon | x2 | -6/Factory | Preloaded Adv. Weapon Cycler | x2 | -6/Factory | Preloaded Repaired ---------- Nothing Alien Tech Used ----------------- None Achievements -------------- None Challenges ------------ None Game ------ Seed OpticalIntegratedGuard Manual? 0 Play Time 01:41:03 Cumulative 354.9 hours Start 2025.06.18 @ 02:10:25 End 2025.06.19 @ 05:06:41 Sessions 7 Manual Loads 0 Difficulty Rogue Special Mode None Game No. 172 Rogue 109 Adventurer 16 Explorer 47 Win Type - Total 44 Types 24/5/7/1/0/2/2/1/1/1 Lore% 93 Gallery% 88 Achievement% 83 Wizard Run 0 Options --------- Layout 2 ASCII 0 Keyboard 0 Movement Mouse Keybinds 0 Fullscreen 1 Font 32/Tamsyn Map View 50x44 Zoom Use 0% Tactical HUD 1 Map Filters NONE Filters NONE Steam 1 RUN: 159f21fe-ba6f-4538-8347-b674a9563d77